[Event "*** SCC Grand Prix: Titled Tuesday Blitz"]
[Site "Chess.com"]
[Date "2020.10.13"]
[Round "10"]
[White "MatyChess1"]
[Black "grunbergmihai"]
[Result "1-0"]
[WhiteElo "2573"]
[BlackElo "2439"]
[TimeControl "180+1"]
[EndTime "11:51:46 PDT"]
[Termination "MatyChess1 won by resignation"]

1. e4 {[%clk 0:03:00]} 1... Nf6 {[%clk 0:02:58.3]} 2. e5 {[%clk 0:02:53.4]} 2...
Nd5 {[%clk 0:02:56.7]} 3. d4 {[%clk 0:02:47.8]} 3... d6 {[%clk 0:02:56.5]} 4.
Nf3 {[%clk 0:02:47.8]} 4... dxe5 {[%clk 0:02:56.2]} 5. Nxe5 {[%clk 0:02:48.7]}
5... c6 {[%clk 0:02:56.7]} 6. Be2 {[%clk 0:02:47.4]} 6... Nd7 {[%clk 0:02:56.6]}
7. Nf3 {[%clk 0:02:47.9]} 7... g6 {[%clk 0:02:55.5]} 8. O-O {[%clk 0:02:48.8]}
8... Bg7 {[%clk 0:02:55.4]} 9. c4 {[%clk 0:02:40.9]} 9... Nc7 {[%clk 0:02:55.1]}
10. Nc3 {[%clk 0:02:36.4]} 10... O-O {[%clk 0:02:54.9]} 11. Be3 {[%clk 0:02:31]}
11... e5 {[%clk 0:02:53.4]} 12. Re1 {[%clk 0:02:20.2]} 12... exd4 {[%clk
0:02:52.5]} 13. Bxd4 {[%clk 0:02:17.8]} 13... Nf6 {[%clk 0:02:47.2]} 14. Qb3
{[%clk 0:01:51.6]} 14... Ne6 {[%clk 0:02:41]} 15. Be5 {[%clk 0:01:51.7]} 15...
Nc5 {[%clk 0:02:36.9]} 16. Qa3 {[%clk 0:01:50.3]} 16... Nfe4 {[%clk 0:02:25.5]}
17. Rad1 {[%clk 0:01:40]} 17... Qb6 {[%clk 0:02:14.2]} 18. Bxg7 {[%clk
0:01:00.2]} 18... Kxg7 {[%clk 0:02:12.1]} 19. b4 {[%clk 0:00:57.7]} 1-0

[Event "*** SCC Grand Prix: Titled Tuesday Blitz"]
[Site "Chess.com"]
[Date "2020.10.13"]
[Round "10"]
[White "GiantThresher"]
[Black "AlexTriapishko"]
[Result "0-1"]
[WhiteElo "2851"]
[BlackElo "2817"]
[TimeControl "180+1"]
[EndTime "11:52:06 PDT"]
[Termination "AlexTriapishko won by resignation"]

1. e4 {[%clk 0:03:00.9]} 1... c6 {[%clk 0:02:53.4]} 2. d4 {[%clk 0:02:59.2]}
2... d5 {[%clk 0:02:54.3]} 3. e5 {[%clk 0:02:59.7]} 3... Bf5 {[%clk 0:02:53.7]}
4. h4 {[%clk 0:02:59.1]} 4... h5 {[%clk 0:02:42.4]} 5. Bd3 {[%clk 0:02:58.2]}
5... Bxd3 {[%clk 0:02:42.1]} 6. Qxd3 {[%clk 0:02:59.1]} 6... Qa5+ {[%clk
0:02:42.5]} 7. Nd2 {[%clk 0:02:57.7]} 7... e6 {[%clk 0:02:42.8]} 8. Ne2 {[%clk
0:02:51.4]} 8... Nh6 {[%clk 0:02:40.3]} 9. O-O {[%clk 0:02:46.9]} 9... Nf5
{[%clk 0:02:39.7]} 10. g3 {[%clk 0:02:39.1]} 10... c5 {[%clk 0:02:35.7]} 11. c4
{[%clk 0:02:08.9]} 11... Qa6 {[%clk 0:02:20]} 12. Qf3 {[%clk 0:01:56.2]} 12...
Nc6 {[%clk 0:02:12.5]} 13. cxd5 {[%clk 0:01:44.8]} 13... Ncxd4 {[%clk
0:02:12.2]} 14. Nxd4 {[%clk 0:01:45.2]} 14... Nxd4 {[%clk 0:02:13.1]} 15. Qe4
{[%clk 0:01:45.8]} 15... exd5 {[%clk 0:01:50.8]} 16. Qxd5 {[%clk 0:01:43.9]}
16... Rd8 {[%clk 0:01:42]} 17. Qe4 {[%clk 0:01:43.4]} 17... Ne2+ {[%clk
0:01:36.3]} 18. Kh2 {[%clk 0:01:34.8]} 18... Nxc1 {[%clk 0:01:35.2]} 19. Nc4
{[%clk 0:01:34.9]} 19... Rd4 {[%clk 0:01:30.6]} 20. Qf5 {[%clk 0:01:22.1]} 20...
Qxc4 {[%clk 0:01:25.6]} 0-1

[Event "*** SCC Grand Prix: Titled Tuesday Blitz"]
[Site "Chess.com"]
[Date "2020.10.13"]
[Round "10"]
[White "m_ezat"]
[Black "tandaleo"]
[Result "1-0"]
[WhiteElo "2532"]
[BlackElo "2344"]
[TimeControl "180+1"]
[EndTime "11:52:27 PDT"]
[Termination "m_ezat won by resignation"]

1. d4 {[%clk 0:03:00.9]} 1... Nf6 {[%clk 0:02:59.4]} 2. c4 {[%clk 0:03:00.9]}
2... e6 {[%clk 0:02:59.7]} 3. Nc3 {[%clk 0:03:00.9]} 3... d5 {[%clk 0:02:59.5]}
4. cxd5 {[%clk 0:03:00.6]} 4... exd5 {[%clk 0:02:59.7]} 5. Bg5 {[%clk
0:03:01.1]} 5... Be7 {[%clk 0:02:56.9]} 6. e3 {[%clk 0:02:57.3]} 6... c6 {[%clk
0:02:57.1]} 7. Qc2 {[%clk 0:02:56.4]} 7... O-O {[%clk 0:02:53.6]} 8. Bd3 {[%clk
0:02:52.9]} 8... Nbd7 {[%clk 0:02:52.5]} 9. Nge2 {[%clk 0:02:52.8]} 9... Re8
{[%clk 0:02:48]} 10. O-O {[%clk 0:02:50.8]} 10... Nf8 {[%clk 0:02:45.4]} 11. f3
{[%clk 0:02:49.5]} 11... b5 {[%clk 0:02:06.9]} 12. Kh1 {[%clk 0:02:41.5]} 12...
b4 {[%clk 0:02:06.6]} 13. Na4 {[%clk 0:02:40.4]} 13... Bd7 {[%clk 0:02:03.8]}
14. Rad1 {[%clk 0:02:34.7]} 14... Ne6 {[%clk 0:02:03.2]} 15. Bxf6 {[%clk
0:02:30.7]} 15... Bxf6 {[%clk 0:02:03.4]} 16. Bxh7+ {[%clk 0:02:31.1]} 16... Kh8
{[%clk 0:02:03]} 17. Bf5 {[%clk 0:02:30.3]} 17... a5 {[%clk 0:01:58.6]} 18. e4
{[%clk 0:02:23]} 18... g6 {[%clk 0:01:53]} 19. Bh3 {[%clk 0:02:20.8]} 19... Ng5
{[%clk 0:01:50.6]} 20. Bxd7 {[%clk 0:02:20]} 20... Qxd7 {[%clk 0:01:49.9]} 21.
Nb6 {[%clk 0:02:18.7]} 21... Qa7 {[%clk 0:01:44]} 22. Nxa8 {[%clk 0:02:19.1]}
22... Qxa8 {[%clk 0:01:44.9]} 23. e5 {[%clk 0:02:18.5]} 23... Bg7 {[%clk
0:01:44.2]} 24. f4 {[%clk 0:02:18.5]} 24... Ne4 {[%clk 0:01:43.8]} 25. Ng3
{[%clk 0:02:18.2]} 25... Nxg3+ {[%clk 0:01:43.2]} 26. hxg3 {[%clk 0:02:17.9]}
26... Bf8 {[%clk 0:01:43.4]} 27. f5 {[%clk 0:02:17.9]} 27... Kg7 {[%clk
0:01:39]} 28. Rf4 {[%clk 0:02:08.1]} 28... c5 {[%clk 0:01:32.9]} 29. Rdf1 {[%clk
0:02:06.5]} 29... g5 {[%clk 0:01:33]} 30. Rg4 {[%clk 0:02:06]} 30... f6 {[%clk
0:01:33.1]} 31. Qd2 {[%clk 0:01:58.9]} 31... Be7 {[%clk 0:01:18.1]} 32. exf6+
{[%clk 0:01:54.5]} 32... Bxf6 {[%clk 0:01:17.7]} 33. Rxg5+ {[%clk 0:01:54.5]}
33... Bxg5 {[%clk 0:01:18]} 34. Qxg5+ {[%clk 0:01:53.9]} 34... Kf8 {[%clk
0:01:17.8]} 35. Qf6+ {[%clk 0:01:53.1]} 35... Kg8 {[%clk 0:01:17.7]} 36. Qg6+
{[%clk 0:01:49.1]} 36... Kf8 {[%clk 0:01:17.1]} 37. f6 {[%clk 0:01:49.4]} 37...
Qb7 {[%clk 0:01:13.9]} 38. f7 {[%clk 0:01:42]} 1-0

[Event "*** SCC Grand Prix: Titled Tuesday Blitz"]
[Site "Chess.com"]
[Date "2020.10.13"]
[Round "10"]
[White "Piotrek1979"]
[Black "katchesskat"]
[Result "1-0"]
[WhiteElo "2402"]
[BlackElo "2239"]
[TimeControl "180+1"]
[EndTime "11:52:28 PDT"]
[Termination "Piotrek1979 won by resignation"]

1. Nf3 {[%clk 0:03:00.9]} 1... c5 {[%clk 0:02:51.3]} 2. e3 {[%clk 0:02:59]} 2...
e6 {[%clk 0:02:50.7]} 3. b3 {[%clk 0:02:57.8]} 3... Nf6 {[%clk 0:02:50]} 4. Bb2
{[%clk 0:02:58.7]} 4... Be7 {[%clk 0:02:49.4]} 5. c4 {[%clk 0:02:53.9]} 5... Qc7
{[%clk 0:02:48.2]} 6. Be2 {[%clk 0:02:53.2]} 6... b6 {[%clk 0:02:46.6]} 7. O-O
{[%clk 0:02:53.4]} 7... Bb7 {[%clk 0:02:46.8]} 8. d4 {[%clk 0:02:51.7]} 8... g5
{[%clk 0:02:44.8]} 9. d5 {[%clk 0:02:41.9]} 9... g4 {[%clk 0:02:44.9]} 10. Ne5
{[%clk 0:02:36.3]} 10... h5 {[%clk 0:02:42.8]} 11. e4 {[%clk 0:02:07.9]} 11...
Bd6 {[%clk 0:01:51.8]} 12. f4 {[%clk 0:01:59.9]} 12... Nxe4 {[%clk 0:01:37.4]}
13. Nxf7 {[%clk 0:01:56.7]} 13... Kxf7 {[%clk 0:01:27.3]} 14. Bxh8 {[%clk
0:01:53.2]} 14... Na6 {[%clk 0:01:25.1]} 15. Nc3 {[%clk 0:01:48.3]} 15... Nf6
{[%clk 0:01:17.6]} 16. Bxf6 {[%clk 0:01:45.9]} 16... Kxf6 {[%clk 0:01:18.5]} 17.
Ne4+ {[%clk 0:01:44.5]} 17... Kf7 {[%clk 0:01:18.2]} 18. dxe6+ {[%clk 0:01:44]}
18... Kxe6 {[%clk 0:01:16.8]} 19. f5+ {[%clk 0:01:39.9]} 19... Ke7 {[%clk
0:01:15.5]} 20. f6+ {[%clk 0:01:38.6]} 20... Ke6 {[%clk 0:01:15.2]} 21. Ng5+
{[%clk 0:01:35.2]} 21... Ke5 {[%clk 0:01:14.5]} 22. Qd2 {[%clk 0:01:28.1]} 1-0

[Event "*** SCC Grand Prix: Titled Tuesday Blitz"]
[Site "Chess.com"]
[Date "2020.10.13"]
[Round "10"]
[White "Margarita2907"]
[Black "brunomorado"]
[Result "0-1"]
[WhiteElo "2167"]
[BlackElo "2297"]
[TimeControl "180+1"]
[EndTime "11:52:35 PDT"]
[Termination "brunomorado won by checkmate"]

1. e4 {[%clk 0:03:00.9]} 1... c5 {[%clk 0:02:57.6]} 2. Nf3 {[%clk 0:02:59.6]}
2... Nc6 {[%clk 0:02:57.8]} 3. d4 {[%clk 0:02:59.7]} 3... cxd4 {[%clk
0:02:58.7]} 4. Nxd4 {[%clk 0:02:59.6]} 4... e5 {[%clk 0:02:59.4]} 5. Nb5 {[%clk
0:02:54.5]} 5... d6 {[%clk 0:02:59.8]} 6. N1c3 {[%clk 0:02:53.3]} 6... a6 {[%clk
0:03:00.1]} 7. Na3 {[%clk 0:02:53.1]} 7... b5 {[%clk 0:03:01]} 8. Nd5 {[%clk
0:02:53]} 8... Nce7 {[%clk 0:03:01.8]} 9. c4 {[%clk 0:02:46.9]} 9... Nxd5 {[%clk
0:03:01.8]} 10. cxd5 {[%clk 0:02:27.1]} 10... f5 {[%clk 0:03:01.6]} 11. exf5
{[%clk 0:02:21.2]} 11... Bxf5 {[%clk 0:02:57.6]} 12. Bd3 {[%clk 0:02:21.5]}
12... e4 {[%clk 0:02:56]} 13. Bc2 {[%clk 0:02:14.8]} 13... Nf6 {[%clk
0:02:54.5]} 14. O-O {[%clk 0:02:11]} 14... Be7 {[%clk 0:02:54.5]} 15. Re1 {[%clk
0:01:56.1]} 15... O-O {[%clk 0:02:30.7]} 16. Nb1 {[%clk 0:01:43.8]} 16... Qe8
{[%clk 0:02:26.3]} 17. Nc3 {[%clk 0:01:38.7]} 17... Qg6 {[%clk 0:02:26]} 18. Ne2
{[%clk 0:01:31.2]} 18... Bg4 {[%clk 0:02:15.4]} 19. Qd4 {[%clk 0:01:25.9]} 19...
Rac8 {[%clk 0:02:03.7]} 20. Nf4 {[%clk 0:01:13]} 20... Qf7 {[%clk 0:01:38.6]}
21. Bxe4 {[%clk 0:01:09.7]} 21... Nxe4 {[%clk 0:01:33]} 22. Qxe4 {[%clk
0:01:06.4]} 22... Bg5 {[%clk 0:01:19.6]} 23. Ne6 {[%clk 0:01:01.1]} 23... Qxf2+
{[%clk 0:01:15.7]} 24. Kh1 {[%clk 0:00:58.6]} 24... Qf1+ {[%clk 0:01:16.6]} 25.
Rxf1 {[%clk 0:00:57.9]} 25... Rxf1# {[%clk 0:01:17.5]} 0-1

[Event "*** SCC Grand Prix: Titled Tuesday Blitz"]
[Site "Chess.com"]
[Date "2020.10.13"]
[Round "10"]
[White "jacky72"]
[Black "margarita_2703"]
[Result "1-0"]
[WhiteElo "2556"]
[BlackElo "2407"]
[TimeControl "180+1"]
[EndTime "11:52:36 PDT"]
[Termination "jacky72 won by resignation"]

1. d4 {[%clk 0:03:00.9]} 1... d5 {[%clk 0:02:58.9]} 2. c4 {[%clk 0:03:00.8]}
2... c6 {[%clk 0:02:58.6]} 3. Nf3 {[%clk 0:03:00.4]} 3... Nf6 {[%clk 0:02:57.1]}
4. Nc3 {[%clk 0:03:00.9]} 4... e6 {[%clk 0:02:54.1]} 5. Bg5 {[%clk 0:03:00.7]}
5... h6 {[%clk 0:02:53.1]} 6. Bh4 {[%clk 0:02:57]} 6... dxc4 {[%clk 0:02:51.8]}
7. a4 {[%clk 0:02:55.8]} 7... Bb4 {[%clk 0:02:48.4]} 8. e3 {[%clk 0:02:54.8]}
8... Qa5 {[%clk 0:02:44.9]} 9. Qc2 {[%clk 0:02:50.8]} 9... Ne4 {[%clk
0:02:38.7]} 10. Rc1 {[%clk 0:02:48]} 10... f5 {[%clk 0:02:29.1]} 11. Bxc4 {[%clk
0:02:46.6]} 11... b5 {[%clk 0:02:15.8]} 12. axb5 {[%clk 0:02:42.9]} 12... cxb5
{[%clk 0:02:15.6]} 13. Bb3 {[%clk 0:02:28.7]} 13... Bxc3+ {[%clk 0:01:57.5]} 14.
bxc3 {[%clk 0:02:28.3]} 14... Nc6 {[%clk 0:01:51.1]} 15. d5 {[%clk 0:02:21.6]}
15... exd5 {[%clk 0:01:47.6]} 16. Bxd5 {[%clk 0:02:21.6]} 16... Bb7 {[%clk
0:01:27.3]} 17. Bxe4 {[%clk 0:02:12.9]} 17... fxe4 {[%clk 0:01:27.1]} 18. Qxe4+
{[%clk 0:02:13.8]} 18... Kf7 {[%clk 0:01:21.6]} 19. Qd5+ {[%clk 0:02:13]} 19...
Kf8 {[%clk 0:01:17.5]} 20. Qd6+ {[%clk 0:02:09]} 20... Kg8 {[%clk 0:01:09.7]}
21. Qe6+ {[%clk 0:02:09.3]} 21... Kh7 {[%clk 0:01:07.4]} 22. Qf5+ {[%clk
0:02:09.7]} 22... Kg8 {[%clk 0:01:06.1]} 23. O-O {[%clk 0:02:08.6]} 23... Qa2
{[%clk 0:00:55.1]} 24. Qxb5 {[%clk 0:02:05.8]} 24... Qa6 {[%clk 0:00:37.5]} 25.
Qd5+ {[%clk 0:02:04.9]} 25... Kh7 {[%clk 0:00:37.4]} 26. Qf5+ {[%clk 0:02:05.2]}
26... Kg8 {[%clk 0:00:35.3]} 27. Rfd1 {[%clk 0:02:05.7]} 27... Bc8 {[%clk
0:00:24.1]} 28. Qg6 {[%clk 0:02:02.5]} 28... Bb7 {[%clk 0:00:16.9]} 29. Rd7
{[%clk 0:02:01.2]} 1-0

[Event "*** SCC Grand Prix: Titled Tuesday Blitz"]
[Site "Chess.com"]
[Date "2020.10.13"]
[Round "10"]
[White "picturesquecheck"]
[Black "Nara_Kh"]
[Result "0-1"]
[WhiteElo "2233"]
[BlackElo "2366"]
[TimeControl "180+1"]
[EndTime "11:52:36 PDT"]
[Termination "Nara_Kh won by resignation"]

1. e4 {[%clk 0:03:00.9]} 1... c5 {[%clk 0:02:58.7]} 2. Nf3 {[%clk 0:02:59.9]}
2... d6 {[%clk 0:02:58.6]} 3. d4 {[%clk 0:02:59.9]} 3... Nf6 {[%clk 0:02:55]} 4.
Nc3 {[%clk 0:02:59.2]} 4... cxd4 {[%clk 0:02:54.9]} 5. Nxd4 {[%clk 0:02:57.7]}
5... a6 {[%clk 0:02:55]} 6. Be3 {[%clk 0:02:57.8]} 6... e5 {[%clk 0:02:53.8]} 7.
Nb3 {[%clk 0:02:57.7]} 7... Be6 {[%clk 0:02:52.1]} 8. f3 {[%clk 0:02:57.6]} 8...
h5 {[%clk 0:02:51.6]} 9. Qd2 {[%clk 0:02:57.8]} 9... Nbd7 {[%clk 0:02:51.4]} 10.
Nd5 {[%clk 0:02:58.7]} 10... Rc8 {[%clk 0:02:49.9]} 11. c4 {[%clk 0:02:56.6]}
11... Bxd5 {[%clk 0:02:36.3]} 12. cxd5 {[%clk 0:02:56]} 12... Be7 {[%clk
0:02:33.9]} 13. Bd3 {[%clk 0:02:55.9]} 13... O-O {[%clk 0:02:32.7]} 14. O-O
{[%clk 0:02:55.9]} 14... h4 {[%clk 0:02:32.9]} 15. Rac1 {[%clk 0:02:54.9]} 15...
Nh5 {[%clk 0:02:32.5]} 16. Rfe1 {[%clk 0:02:41.7]} 16... Rxc1 {[%clk 0:02:25.2]}
17. Rxc1 {[%clk 0:02:38.8]} 17... Nf4 {[%clk 0:02:25.1]} 18. Bf1 {[%clk
0:02:37.9]} 18... f5 {[%clk 0:02:10]} 19. Qa5 {[%clk 0:02:32.7]} 19... Qe8
{[%clk 0:01:55.3]} 20. Qc7 {[%clk 0:02:25]} 20... Nf6 {[%clk 0:01:39.2]} 21. Nd2
{[%clk 0:02:08.2]} 21... fxe4 {[%clk 0:01:34.7]} 22. fxe4 {[%clk 0:02:08.2]}
22... Ng4 {[%clk 0:01:32]} 23. Bxf4 {[%clk 0:01:56.9]} 23... exf4 {[%clk
0:01:27.3]} 24. Qxb7 {[%clk 0:01:54.4]} 24... Bf6 {[%clk 0:01:25.9]} 25. Qb4
{[%clk 0:01:36.2]} 25... Qe7 {[%clk 0:01:17.3]} 26. Be2 {[%clk 0:01:30.7]} 26...
Qa7+ {[%clk 0:01:13.9]} 27. Rc5 {[%clk 0:01:19.1]} 27... dxc5 {[%clk 0:00:58.5]}
0-1

[Event "*** SCC Grand Prix: Titled Tuesday Blitz"]
[Site "Chess.com"]
[Date "2020.10.13"]
[Round "10"]
[White "Zhigalko_Sergei"]
[Black "Beltsychess"]
[Result "1-0"]
[WhiteElo "2916"]
[BlackElo "2645"]
[TimeControl "180+1"]
[EndTime "11:52:37 PDT"]
[Termination "Zhigalko_Sergei won by resignation"]

1. e4 {[%clk 0:03:00.9]} 1... Nf6 {[%clk 0:02:59.2]} 2. e5 {[%clk 0:03:00.9]}
2... Nd5 {[%clk 0:02:59.4]} 3. d4 {[%clk 0:03:01.2]} 3... d6 {[%clk 0:02:59.6]}
4. Nf3 {[%clk 0:03:01.5]} 4... Bg4 {[%clk 0:02:58.6]} 5. Be2 {[%clk 0:03:01.1]}
5... e6 {[%clk 0:02:58.9]} 6. O-O {[%clk 0:02:55.9]} 6... Be7 {[%clk 0:02:58.9]}
7. c4 {[%clk 0:02:54.6]} 7... Nb6 {[%clk 0:02:58.9]} 8. h3 {[%clk 0:02:54.6]}
8... Bh5 {[%clk 0:02:58.5]} 9. Nc3 {[%clk 0:02:55.1]} 9... O-O {[%clk
0:02:58.4]} 10. Be3 {[%clk 0:02:49.4]} 10... d5 {[%clk 0:02:58.1]} 11. cxd5
{[%clk 0:02:44.5]} 11... exd5 {[%clk 0:02:54.5]} 12. Ne1 {[%clk 0:02:36.3]}
12... Bxe2 {[%clk 0:02:53.7]} 13. Qxe2 {[%clk 0:02:35.1]} 13... Nc6 {[%clk
0:02:53.3]} 14. Nd3 {[%clk 0:02:33.8]} 14... Nc4 {[%clk 0:02:25.8]} 15. Rae1
{[%clk 0:02:24.2]} 15... Bb4 {[%clk 0:02:12.6]} 16. Rc1 {[%clk 0:02:16.3]} 16...
Be7 {[%clk 0:01:49.5]} 17. Nf4 {[%clk 0:02:10.9]} 17... Nb6 {[%clk 0:01:48.4]}
18. Qf3 {[%clk 0:02:09.5]} 18... Bg5 {[%clk 0:01:31.7]} 19. Nfxd5 {[%clk
0:02:02.4]} 19... Nxd5 {[%clk 0:01:20.2]} 20. Nxd5 {[%clk 0:02:02.7]} 20... Bxe3
{[%clk 0:01:18.3]} 21. fxe3 {[%clk 0:02:03.2]} 21... Qd7 {[%clk 0:01:14.1]} 22.
Rc5 {[%clk 0:01:50.4]} 22... Rac8 {[%clk 0:01:09.6]} 23. Nf6+ {[%clk 0:01:29.2]}
23... gxf6 {[%clk 0:01:08]} 24. exf6 {[%clk 0:01:30.1]} 24... Kh8 {[%clk
0:00:58.3]} 25. Rh5 {[%clk 0:01:29.9]} 25... Nxd4 {[%clk 0:00:44.6]} 26. Rxh7+
{[%clk 0:01:27.3]} 26... Kxh7 {[%clk 0:00:44.7]} 27. Qh5+ {[%clk 0:01:27.3]} 1-0

[Event "*** SCC Grand Prix: Titled Tuesday Blitz"]
[Site "Chess.com"]
[Date "2020.10.13"]
[Round "10"]
[White "Alindsay211"]
[Black "Aygehovit1992"]
[Result "0-1"]
[WhiteElo "2450"]
[BlackElo "2652"]
[TimeControl "180+1"]
[EndTime "11:52:39 PDT"]
[Termination "Aygehovit1992 won by resignation"]

1. e4 {[%clk 0:03:00.9]} 1... d6 {[%clk 0:03:00.3]} 2. d4 {[%clk 0:03:00.1]}
2... Nf6 {[%clk 0:03:00.2]} 3. Nc3 {[%clk 0:02:57.8]} 3... g6 {[%clk 0:03:00]}
4. Be3 {[%clk 0:02:56]} 4... c6 {[%clk 0:02:59.5]} 5. Nf3 {[%clk 0:02:50.2]}
5... Bg7 {[%clk 0:02:58.7]} 6. h3 {[%clk 0:02:39.7]} 6... O-O {[%clk 0:02:57.9]}
7. Qd2 {[%clk 0:02:38.3]} 7... b5 {[%clk 0:02:57.6]} 8. a3 {[%clk 0:02:35]} 8...
a5 {[%clk 0:02:57.7]} 9. Be2 {[%clk 0:02:32.2]} 9... Bb7 {[%clk 0:02:57.8]} 10.
e5 {[%clk 0:02:22.8]} 10... dxe5 {[%clk 0:02:57.6]} 11. dxe5 {[%clk 0:02:19.7]}
11... Qxd2+ {[%clk 0:02:57.4]} 12. Nxd2 {[%clk 0:02:14.3]} 12... Nfd7 {[%clk
0:02:53.2]} 13. f4 {[%clk 0:02:08.8]} 13... b4 {[%clk 0:02:51.5]} 14. axb4
{[%clk 0:02:05.9]} 14... axb4 {[%clk 0:02:51.4]} 15. Rxa8 {[%clk 0:02:06.3]}
15... bxc3 {[%clk 0:02:50.8]} 16. Ra7 {[%clk 0:01:47.7]} 16... cxd2+ {[%clk
0:02:51.7]} 17. Kxd2 {[%clk 0:01:46.2]} 17... Bc8 {[%clk 0:02:52.3]} 18. Rd1
{[%clk 0:01:37]} 18... c5 {[%clk 0:02:52.1]} 19. Kc1 {[%clk 0:01:29.1]} 19... g5
{[%clk 0:02:47.4]} 20. g3 {[%clk 0:01:23.4]} 20... gxf4 {[%clk 0:02:46.2]} 21.
gxf4 {[%clk 0:01:22.9]} 21... Bh6 {[%clk 0:02:32.9]} 22. Rg1+ {[%clk 0:01:10.6]}
22... Kh8 {[%clk 0:02:32.7]} 23. Kb1 {[%clk 0:01:07.2]} 23... Nc6 {[%clk
0:02:27]} 24. Ra3 {[%clk 0:01:04.5]} 24... Nd4 {[%clk 0:02:26.3]} 25. Bxd4
{[%clk 0:00:58.4]} 25... cxd4 {[%clk 0:02:27.2]} 26. Rg4 {[%clk 0:00:54.6]}
26... Nc5 {[%clk 0:02:10.7]} 27. Rh4 {[%clk 0:00:47.8]} 27... Bg7 {[%clk
0:02:11.2]} 28. Bd3 {[%clk 0:00:46.5]} 28... Nxd3 {[%clk 0:02:10.1]} 29. Rxd3
{[%clk 0:00:39.4]} 29... f6 {[%clk 0:02:11]} 30. Rxd4 {[%clk 0:00:35.9]} 30...
fxe5 {[%clk 0:02:10.9]} 31. fxe5 {[%clk 0:00:35.1]} 31... Bxe5 {[%clk
0:02:10.5]} 32. Rd2 {[%clk 0:00:33.1]} 32... Be6 {[%clk 0:02:06.1]} 33. Re4
{[%clk 0:00:30.1]} 33... Rf1+ {[%clk 0:02:05.3]} 0-1

[Event "*** SCC Grand Prix: Titled Tuesday Blitz"]
[Site "Chess.com"]
[Date "2020.10.13"]
[Round "10"]
[White "Kavyev_Ruslan"]
[Black "Nikolakis2014"]
[Result "0-1"]
[WhiteElo "2564"]
[BlackElo "2742"]
[TimeControl "180+1"]
[EndTime "11:52:46 PDT"]
[Termination "Nikolakis2014 won by checkmate"]

1. d4 {[%clk 0:03:00.9]} 1... Nf6 {[%clk 0:02:56.5]} 2. c4 {[%clk 0:03:00.4]}
2... g6 {[%clk 0:02:56.3]} 3. Nc3 {[%clk 0:02:59]} 3... Bg7 {[%clk 0:02:56.3]}
4. e4 {[%clk 0:02:59]} 4... d6 {[%clk 0:02:56.3]} 5. Be2 {[%clk 0:02:59.1]} 5...
O-O {[%clk 0:02:55.8]} 6. Be3 {[%clk 0:02:59.1]} 6... c6 {[%clk 0:02:48.9]} 7.
Nf3 {[%clk 0:02:58.3]} 7... Na6 {[%clk 0:02:48.7]} 8. O-O {[%clk 0:02:56.9]}
8... e5 {[%clk 0:02:48.7]} 9. d5 {[%clk 0:02:56]} 9... Ng4 {[%clk 0:02:48.1]}
10. Bg5 {[%clk 0:02:55.8]} 10... f6 {[%clk 0:02:48.2]} 11. Bh4 {[%clk
0:02:56.3]} 11... c5 {[%clk 0:02:47.3]} 12. Nd2 {[%clk 0:02:55.5]} 12... Nh6
{[%clk 0:02:47.2]} 13. f3 {[%clk 0:02:55.3]} 13... Nf7 {[%clk 0:02:46.3]} 14. a3
{[%clk 0:02:52.5]} 14... Bh6 {[%clk 0:02:45.3]} 15. Bf2 {[%clk 0:02:50.6]} 15...
f5 {[%clk 0:02:44.7]} 16. exf5 {[%clk 0:02:44.1]} 16... gxf5 {[%clk 0:02:43.6]}
17. Rb1 {[%clk 0:02:44]} 17... Kh8 {[%clk 0:02:37]} 18. b4 {[%clk 0:02:44.1]}
18... b6 {[%clk 0:02:37.2]} 19. Bd3 {[%clk 0:02:42.9]} 19... Rg8 {[%clk
0:02:34.3]} 20. Kh1 {[%clk 0:02:42.8]} 20... Qg5 {[%clk 0:02:28.6]} 21. Bg3
{[%clk 0:01:40.8]} 21... Qxd2 {[%clk 0:02:24.6]} 22. Qxd2 {[%clk 0:01:39.6]}
22... Bxd2 {[%clk 0:02:23.1]} 23. Ne2 {[%clk 0:01:39.8]} 23... cxb4 {[%clk
0:02:15.9]} 24. axb4 {[%clk 0:01:38.4]} 24... Nxb4 {[%clk 0:02:10.9]} 25. Rb3
{[%clk 0:01:39]} 25... Nxd3 {[%clk 0:02:09.8]} 26. Rxd3 {[%clk 0:01:39.9]} 26...
Bb4 {[%clk 0:02:09.3]} 27. Bh4 {[%clk 0:01:36.3]} 27... Rg6 {[%clk 0:02:06.9]}
28. Nc3 {[%clk 0:01:33.2]} 28... Ba6 {[%clk 0:01:58.8]} 29. Nb5 {[%clk
0:01:32.7]} 29... Bxb5 {[%clk 0:01:52.8]} 30. cxb5 {[%clk 0:01:33.6]} 30... Bc5
{[%clk 0:01:53.1]} 31. Ra1 {[%clk 0:01:31.8]} 31... e4 {[%clk 0:01:43.2]} 32.
fxe4 {[%clk 0:01:31.2]} 32... fxe4 {[%clk 0:01:43.1]} 33. Rg3 {[%clk 0:01:31.9]}
33... Rxg3 {[%clk 0:01:41.7]} 34. Bxg3 {[%clk 0:01:32.8]} 34... Kg7 {[%clk
0:01:40.4]} 35. Bf4 {[%clk 0:01:27.1]} 35... Kf6 {[%clk 0:01:39.2]} 36. g3
{[%clk 0:01:27.2]} 36... Ne5 {[%clk 0:01:38]} 37. Kg2 {[%clk 0:01:26.4]} 37...
Nd3 {[%clk 0:01:35.7]} 38. Kf1 {[%clk 0:01:26.7]} 38... Nxf4 {[%clk 0:01:35]}
39. gxf4 {[%clk 0:01:27.6]} 39... Kf5 {[%clk 0:01:35.5]} 40. Ke2 {[%clk
0:01:28.2]} 40... Kxf4 {[%clk 0:01:35.8]} 41. Rf1+ {[%clk 0:01:28.8]} 41... Ke5
{[%clk 0:01:36]} 42. Rf7 {[%clk 0:01:29.7]} 42... Kxd5 {[%clk 0:01:35.5]} 43.
Rxh7 {[%clk 0:01:30.4]} 43... Kc4 {[%clk 0:01:35.4]} 44. h4 {[%clk 0:01:31.3]}
44... d5 {[%clk 0:01:35.3]} 45. h5 {[%clk 0:01:32.2]} 45... d4 {[%clk
0:01:35.4]} 46. Rd7 {[%clk 0:01:33.1]} 46... d3+ {[%clk 0:01:35.1]} 47. Kd2
{[%clk 0:01:33.8]} 47... e3+ {[%clk 0:01:34.4]} 48. Ke1 {[%clk 0:01:33.5]} 48...
Rg8 {[%clk 0:01:33.7]} 49. Kf1 {[%clk 0:01:32.7]} 49... e2+ {[%clk 0:01:32.6]}
50. Ke1 {[%clk 0:01:33.2]} 50... Rg1+ {[%clk 0:01:30.2]} 51. Kd2 {[%clk
0:01:33.6]} 51... Rd1# {[%clk 0:01:30]} 0-1